bitfinex/quotes_SOLUSD_20250809
["timestamp","ask_amount","ask_price","bid_price","bid_amount"]
[1754745620914,0.03,181.21,181.2,25.46406769]
[1754745622110,0.03,181.21,181.2,30.98283148]
[1754745623107,0.03,181.21,181.2,30.98035904]
[1754745623419,0.03,181.23,181.2,30.98035904]
[1754745623718,0.03,181.25,181.24,41.10621557]
[1754745623932,0.03,181.29,181.25,15.10621557]
[1754745624222,0.03,181.29,181.26,9.65537968]
[1754745624598,0.03,181.29,181.26,15.41299371]
[1754745625015,0.03,181.29,181.26,20.9299307]
[1754745625311,0.03,181.29,181.26,36.73614627]
[1754745625707,0.03,181.29,181.26,36.03614627]
[1754745626093,0.03,181.29,181.26,9.65121452]
[1754745626294,0.73,181.29,181.26,9.65121452]
[1754745626912,0.03,181.29,181.26,36.73198111]
[1754745628716,0.03,181.29,181.26,76.69198111]
[1754745629031,0.03,181.29,181.26,76.6883092]
[1754745629196,0.03,181.29,181.28,20.8638296]
[1754745629519,0.03,181.29,181.28,24.75375818]
[1754745630318,0.03,181.29,181.28,30.94008651]
[1754745630522,0.03,181.29,181.28,30.27008651]
[1754745631626,0.7,181.29,181.28,3.88992858]
[1754745632116,0.7,181.29,181.28,9.64754261]
[1754745632307,0.7,181.29,181.28,3.88992858]
[1754745632914,6.21602404,181.29,181.28,3.88992858]
[1754745633303,6.21602404,181.29,181.28,9.64754261]
[1754745634112,11.97363807,181.29,181.19,15.16621557]
[1754745634332,5.51693699,181.26,181.2,3.88757233]
[1754745634532,0.67,181.25,181.21,3.88757233]
[1754745634713,0.67,181.25,181.19,5.81761403]
[1754745634714,45.83761403,181.24,181.19,5.81761403]
[1754745634910,6.42761403,181.23,181.19,0.06]
[1754745635105,0.67,181.23,181.19,9.70653391]
[1754745635324,0.67,181.23,181.19,0.06]
[1754745635526,0.67,181.23,181.19,5.81761403]
[1754745635928,5.75761403,181.22,181.19,0.06]
[1754745636136,6.42761403,181.21,181.19,0.06]
[1754745636327,5.51876379,181.2,181.19,0.06]
[1754745636539,6.18876379,181.2,181.19,0.06]
[1754745637521,0.67,181.2,181.19,3.94869354]
[1754745637726,0.67,181.2,181.19,0.06]
[1754745638323,6.18876379,181.2,181.19,0.06]
[1754745641137,40.07,181.21,181.19,5.81761403]
[1754745641336,40.07,181.21,181.2,5.75761403]
[1754745642118,45.58855607,181.21,181.19,0.06]
[1754745642435,40.07,181.21,181.2,5.75761403]
[1754745643036,46.25857055,181.21,181.2,5.75761403]
[1754745644226,46.25857055,181.21,181.19,0.06]
[1754745644429,0.67,181.2,181.19,0.06]
[1754745644932,0.67,181.2,181.19,5.81761403]
[1754745645254,0.67,181.2,181.19,0.06]
[1754745645928,6.18876379,181.2,181.19,0.06]
[1754745649944,45.58850191,181.21,181.19,5.81761403]
[1754745650256,46.25850191,181.21,181.19,5.81761403]
[1754745650858,45.58850191,181.21,181.19,0.06]
[1754745651025,0.67,181.2,181.19,0.06]
[1754745651967,45.58850191,181.21,181.19,0.06]
[1754745652462,46.25850191,181.21,181.19,0.06]
[1754745652764,0.67,181.2,181.19,0.06]
[1754745653970,11.94637782,181.2,181.19,0.06]
[1754745657365,6.18876379,181.2,181.19,0.06]
[1754745657954,5.51876379,181.2,181.19,0.06]
[1754745658263,45.49876379,181.2,181.19,0.06]
[1754745658569,46.16876379,181.2,181.19,0.06]
[1754745659077,45.49876379,181.2,181.19,0.06]
[1754745659751,46.17876379,181.2,181.19,0.06]
[1754745660467,45.49876379,181.2,181.19,0.06]
[1754745660844,0.03,181.21,181.19,6.48761403]
[1754745661151,39.95,181.21,181.2,10.30922409]
[1754745661649,39.95,181.21,181.2,5.75761403]
[1754745662042,39.95,181.21,181.2,10.30930362]
[1754745663066,0.03,181.21,181.2,30.93406418]
[1754745663955,0.03,181.21,181.2,25.41530039]
[1754745664285,0.03,181.21,181.2,4.55147079]
[1754745664464,0.03,181.21,181.2,9.63908482]
[1754745664780,0.03,181.21,181.19,5.81761403]
[1754745665095,39.9,181.2,181.19,5.81761403]
[1754745665246,39.9,181.2,181.19,0.06]
[1754745665951,40.58,181.2,181.19,0.06]
[1754745666773,46.09876379,181.2,181.19,0.06]
[1754745669671,45.41876379,181.2,181.19,0.06]
[1754745670364,46.09876379,181.2,181.19,0.06]
[1754745672166,51.85637782,181.2,181.19,0.06]
[1754745672456,26.0,181.18,181.17,1e-08]
[1754745672669,71.57761403,181.18,181.17,1e-08]
[1754745672976,72.25761403,181.18,181.17,1e-08]
[1754745673276,65.82,181.18,181.17,1e-08]
[1754745673482,39.82,181.18,181.17,1e-08]
[1754745673861,39.82,181.18,181.17,6.42761404]
[1754745674262,39.82,181.18,181.17,10.32043627]
[1754745674678,0.03,181.21,181.17,16.0780503]
[1754745674959,0.03,181.21,181.2,5.75761403]
[1754745674960,39.85,181.21,181.2,5.75761403]
[1754745675286,39.85,181.21,181.2,10.32043626]
[1754745675657,0.03,181.21,181.2,10.32043626]
[1754745675869,0.03,181.21,181.2,15.83920005]
[1754745677474,0.03,181.21,181.2,30.94541562]
[1754745679090,0.03,181.27,181.21,15.10621557]
[1754745679389,0.03,181.27,181.26,5.75761403]
[1754745679691,0.03,181.27,181.26,9.65043626]
[1754745680070,0.03,181.27,181.26,4.56282223]
[1754745680279,0.03,181.27,181.26,10.32043626]
[1754745681074,0.03,181.27,181.26,3.89282223]
[1754745681275,0.03,181.27,181.26,9.65043626]
[1754745681678,0.71,181.27,181.26,3.89282223]
[1754745682083,0.71,181.27,181.2,0.67]
[1754745682371,0.71,181.27,181.24,5.75761403]
[1754745682687,0.03,181.27,181.25,9.67616236]
[1754745682911,0.03,181.27,181.26,3.91854833]
[1754745683067,0.71,181.27,181.26,9.67616236]
[1754745683273,0.71,181.27,181.26,3.91854833]
[1754745683698,0.03,181.27,181.26,3.91854833]
[1754745684196,0.03,181.27,181.26,9.67616236]
[1754745684402,0.03,181.27,181.18,41.10621557]
[1754745684403,6.46761403,181.27,181.19,0.67]
[1754745684575,46.23761403,181.26,181.22,5.75761403]
[1754745684772,0.68,181.25,181.23,3.91769367]
[1754745684972,0.68,181.25,181.24,3.91769367]
[1754745685277,0.68,181.25,181.23,5.75761403]
[1754745685785,45.31709602,181.26,181.24,5.75761403]
[1754745686085,45.99709602,181.26,181.24,5.75761403]
[1754745686287,0.68,181.25,181.24,5.75761403]
[1754745686486,0.68,181.25,181.22,5.75761403]
[1754745686686,0.68,181.24,181.23,3.91781668]
[1754745686881,0.68,181.24,181.22,5.75761403]
[1754745687065,0.68,181.24,181.19,0.67]
[1754745687066,0.68,181.24,181.23,9.67568572]
[1754745687265,39.8,181.24,181.23,9.67568572]
[1754745687678,40.48,181.24,181.23,9.67568572]
[1754745688008,45.99754579,181.24,181.23,9.67568572]
[1754745688793,45.99754579,181.24,181.23,3.91807169]
[1754745689096,51.75515982,181.24,181.18,5.75761403]
[1754745689302,0.67,181.23,181.19,9.67564963]
[1754745689476,51.07515982,181.24,181.2,3.9180356]
[1754745689795,45.31754579,181.24,181.21,3.9180356]
[1754745689972,45.98754579,181.24,181.22,3.91806181]
[1754745690178,0.67,181.23,181.2,5.75761403]
[1754745690374,0.67,181.22,181.21,3.91786731]
[1754745691776,45.31754579,181.24,181.21,3.91786731]
[1754745692102,45.31754579,181.24,181.22,3.91828409]
[1754745692273,0.67,181.23,181.2,5.75761403]
[1754745692473,0.67,181.23,181.21,3.91817526]
[1754745692699,0.67,181.23,181.2,5.75761403]
[1754745692700,0.67,181.23,181.22,3.91858086]
[1754745692884,6.18785024,181.23,181.22,3.91858086]
[1754745693484,25.74008988,181.23,181.18,5.75761403]
[1754745693695,5.75761403,181.2,181.19,3.91861997]
[1754745693900,45.55761403,181.2,181.17,1e-08]
[1754745694099,0.67,181.22,181.18,5.75761403]
[1754745694416,39.8,181.21,181.19,9.67725812]
[1754745694588,39.8,181.21,181.19,5.75761403]
[1754745694788,39.8,181.21,181.2,5.75761403]
[1754745695007,45.31845924,181.21,181.19,5.75761403]
[1754745695308,45.98845924,181.21,181.19,5.75761403]
[1754745695508,45.31845924,181.21,181.17,1e-08]
[1754745695711,6.42761403,181.2,181.18,3.91915702]
[1754745695903,0.67,181.19,181.17,1e-08]
[1754745696112,45.55761403,181.18,181.17,1e-08]
[1754745696824,46.22761403,181.18,181.17,1e-08]
[1754745697040,51.74698702,181.18,181.17,1e-08]
[1754745697628,45.31937299,181.18,181.17,5.75761404]
[1754745697922,51.74698702,181.18,181.17,1e-08]
[1754745698290,45.98937299,181.18,181.17,1e-08]
[1754745698906,6.18937299,181.18,181.17,1e-08]
[1754745699114,46.00937299,181.18,181.17,1e-08]
[1754745699314,51.76698702,181.18,181.17,1e-08]
[1754745700294,46.00937299,181.18,181.17,1e-08]
[1754745700520,45.33937299,181.18,181.17,1e-08]
[1754745700706,46.00937299,181.18,181.17,1e-08]
[1754745700907,51.76698702,181.18,181.17,1e-08]
[1754745701719,46.00937299,181.18,181.17,1e-08]
[1754745702131,51.76698702,181.18,181.17,1e-08]
[1754745704023,53.97735902,181.18,181.17,1e-08]
[1754745704321,72.75658812,181.18,181.15,0.06]
[1754745704620,6.42761403,181.17,181.15,0.06]
[1754745704798,39.82,181.16,181.15,0.06]
[1754745704994,40.49,181.16,181.15,0.06]
[1754745705212,39.82,181.16,181.15,0.06]
[1754745705407,40.49,181.16,181.15,0.06]
[1754745706415,47.55047633,181.16,181.15,0.06]
[1754745706716,45.33998233,181.16,181.15,0.06]
[1754745707907,46.00998233,181.16,181.15,0.06]
[1754745709450,45.33998233,181.16,181.15,0.06]
[1754745711024,51.76759636,181.16,181.15,0.06]
[1754745711630,2.210494,181.16,181.15,0.06]
[1754745711832,2.210494,181.16,181.15,10.3985699]
[1754745712033,42.030494,181.16,181.15,10.3985699]
[1754745712450,39.82,181.16,181.15,10.3985699]
[1754745713042,39.82,181.16,181.15,6.46761403]
[1754745713230,39.82,181.16,181.15,10.39807722]
[1754745714032,39.82,181.16,181.15,4.64046319]
[1754745714233,45.33998233,181.16,181.15,3.99046319]
[1754745714533,46.00998233,181.16,181.15,0.06]
[1754745715431,45.33998233,181.16,181.15,0.06]
[1754745716052,51.76759636,181.16,181.15,0.06]
[1754745717450,46.00998233,181.16,181.15,0.06]
[1754745717651,45.33998233,181.16,181.15,0.06]
[1754745717958,46.00998233,181.16,181.15,0.06]
[1754745718640,45.33998233,181.16,181.15,0.06]
[1754745719028,46.05998233,181.16,181.15,0.06]
[1754745719451,51.81759636,181.16,181.15,0.06]
[1754745719658,45.33998233,181.16,181.15,0.06]
[1754745720348,45.33998233,181.16,181.15,6.47761403]
[1754745720531,0.03,181.18,181.15,10.4067963]
[1754745720728,0.03,181.18,181.17,5.75761403]
[1754745720949,40.55,181.18,181.15,0.06]
[1754745721137,46.06937299,181.18,181.15,0.06]
[1754745722053,45.34937299,181.18,181.15,9.74687074]
[1754745722260,45.34937299,181.18,181.15,5.81761403]
[1754745723069,45.34937299,181.18,181.16,5.75761403]
[1754745723239,39.83,181.18,181.17,6.41761403]
[1754745723747,39.83,181.18,181.17,10.34763024]
[1754745723950,39.83,181.18,181.17,6.41761403]
[1754745724247,45.34937299,181.18,181.16,5.75761403]
[1754745724644,39.83,181.18,181.17,3.93168981]
[1754745724839,39.83,181.18,181.17,3.93177208]
[1754745725039,39.83,181.18,181.17,3.93168795]
[1754745725234,39.83,181.18,181.16,5.75761403]
[1754745725434,39.83,181.18,181.17,3.93393739]
[1754745725860,45.34940157,181.18,181.17,3.93393739]
[1754745726557,39.83,181.18,181.17,9.69155142]
[1754745726735,39.83,181.18,181.17,10.35155142]
[1754745729663,39.83,181.18,181.17,10.36069558]
[1754745730749,39.83,181.18,181.17,4.60308155]
[1754745730961,39.83,181.18,181.17,9.70069558]
[1754745732044,45.34937299,181.18,181.17,3.94308155]
[1754745732250,46.06937299,181.18,181.17,3.94308155]
[1754745732657,39.83,181.18,181.17,10.36069558]
[1754745732845,39.83,181.18,181.17,3.94308155]
[1754745733044,39.83,181.18,181.17,9.70069558]
[1754745733362,39.83,181.18,181.17,10.36069558]
[1754745735068,39.83,181.18,181.17,15.88037323]
[1754745735249,0.03,181.18,181.17,36.74420283]
[1754745735455,0.03,181.22,181.18,15.10621557]
[1754745735760,0.03,181.22,181.21,5.75761403]
[1754745735954,0.03,181.22,181.21,9.70069558]
[1754745736160,0.03,181.22,181.21,10.36069558]
[1754745736655,0.03,181.22,181.21,9.70069558]
[1754745737053,0.03,181.22,181.21,15.87915482]
[1754745742453,0.03,181.22,181.21,15.87251491]
[1754745743368,0.03,181.22,181.21,30.97873048]
[1754745744683,0.03,181.24,181.23,31.75761403]
[1754745744987,0.03,181.24,181.23,35.69405567]
[1754745745169,0.03,181.24,181.23,51.46027124]
[1754745746455,0.03,181.24,181.23,56.97812148]
[1754745750182,0.03,181.24,181.23,30.31812148]
[1754745750575,0.03,181.24,181.23,56.31812148]
[1754745750969,0.73,181.24,181.23,35.69405567]
[1754745751284,0.03,181.24,181.23,35.69405567]
[1754745751478,0.03,181.24,181.23,41.92190591]
[1754745751683,0.03,181.24,181.23,57.02812148]
[1754745753273,0.03,181.24,181.23,56.31812148]
[1754745754165,0.03,181.24,181.23,57.02812148]
[1754745754977,0.03,181.24,181.23,56.31812148]
[1754745755807,0.03,181.24,181.23,57.02812148]
[1754745756101,0.03,181.24,181.23,57.0836235]
[1754745757197,0.03,181.24,181.23,65.06600947]
[1754745757370,0.03,181.24,181.23,70.8236235]
[1754745758395,0.73,181.24,181.23,3.99194366]
[1754745758583,0.73,181.24,181.23,9.74955769]
[1754745759089,0.03,181.24,181.23,15.26740793]
[1754745759882,0.03,181.24,181.23,9.74955769]
[1754745760081,0.73,181.24,181.23,9.74955769]
[1754745761768,0.73,181.24,181.23,9.75190798]
[1754745763579,0.03,181.24,181.23,9.75190798]
[1754745767907,0.03,181.24,181.23,15.97975822]
[1754745768280,0.03,181.24,181.23,41.97975822]
[1754745768502,0.73,181.24,181.23,35.75190798]
[1754745769378,0.03,181.24,181.23,35.75190798]
[1754745770014,0.73,181.24,181.23,3.99429395]
[1754745770301,0.73,181.24,181.23,9.75190798]
[1754745770804,0.73,181.24,181.23,9.76076563]
[1754745771186,0.03,181.24,181.23,9.76076563]
[1754745771881,0.73,181.24,181.23,9.76076563]
[1754745772799,0.73,181.24,181.23,4.0031516]
[1754745773005,0.73,181.24,181.23,9.76076563]
[1754745773978,0.03,181.24,181.23,9.76076563]
[1754745775984,0.73,181.24,181.23,9.76076563]
[1754745776311,0.73,181.24,181.23,4.0031516]
[1754745776607,0.03,181.24,181.23,9.76076563]
[1754745778788,0.73,181.24,181.23,9.76076563]
[1754745779992,0.03,181.24,181.23,9.76076563]
[1754745780510,0.72,181.24,181.23,4.0031516]
[1754745780694,0.03,181.24,181.23,9.76076563]
[1754745781413,0.03,181.24,181.23,9.77682343]
[1754745782987,0.03,181.24,181.23,10.49682343]
[1754745783618,0.03,181.24,181.23,9.77682343]
[1754745784514,0.03,181.24,181.23,9.77724538]
[1754745784811,0.03,181.24,181.23,10.49724538]
[1754745785522,0.03,181.24,181.23,9.77724538]
[1754745786924,0.03,181.24,181.23,4.01963135]
[1754745787125,0.72,181.24,181.23,9.77724538]
[1754745787331,0.72,181.24,181.23,4.01963135]
[1754745787540,0.72,181.24,181.23,9.77724538]
[1754745787827,0.72,181.24,181.23,4.01963135]
[1754745788025,0.72,181.24,181.23,9.77724538]
[1754745788397,0.03,181.24,181.23,9.77724538]
[1754745788729,0.03,181.24,181.23,10.49724538]
[1754745789820,0.03,181.24,181.23,9.77724538]
[1754745790329,0.03,181.24,181.23,9.76039658]
[1754745791733,0.03,181.24,181.23,10.48039658]
[1754745793112,0.03,181.24,181.23,15.99824682]
[1754745794129,0.03,181.24,181.23,15.9987042]
[1754745795234,0.03,181.24,181.23,15.99911389]
[1754745796708,0.03,181.24,181.23,31.10532946]
[1754745796907,0.00092534,181.24,181.23,31.10532946]
[1754745797324,0.00092534,181.24,181.23,30.38532946]
[1754745797510,0.00092534,181.24,181.23,30.38484308]
[1754745797930,0.00092534,181.24,181.23,9.76077727]
[1754745798228,0.00092534,181.24,181.23,15.27862751]
[1754745798528,0.00092534,181.24,181.23,15.99862751]
[1754745801034,0.00092534,181.24,181.23,15.27862751]
[1754745801827,0.69092534,181.24,181.23,9.76077727]
[1754745802420,0.00092534,181.24,181.23,9.76077727]
[1754745804437,0.69092534,181.24,181.23,9.76077727]
[1754745804613,0.00092534,181.24,181.23,9.76077727]
[1754745804813,0.00092534,181.24,181.23,15.27862751]
[1754745805851,0.00092534,181.24,181.23,4.00316324]
[1754745806020,0.00092534,181.24,181.23,9.76077727]
[1754745806569,0.00092534,181.24,181.23,15.27862751]
[1754745806742,0.00092534,181.24,181.23,15.99862751]
[1754745807426,0.00092534,181.24,181.23,15.27862751]
[1754745808656,0.69092534,181.24,181.23,9.76077727]
[1754745809041,0.00092534,181.24,181.23,9.76077727]
[1754745809243,0.00092534,181.24,181.23,15.27862751]
[1754745809760,0.00092534,181.24,181.23,9.52101348]
[1754745809930,0.00092534,181.24,181.23,15.27862751]
[1754745810138,0.00092534,181.24,181.23,15.98862751]
[1754745811567,0.03,181.26,181.23,36.85245711]
[1754745811760,0.03,181.28,181.27,26.0]
[1754745811942,0.03,181.28,181.27,35.76077727]
[1754745812259,0.03,181.28,181.27,91.21699284]
[1754745812586,0.03,181.28,181.27,9.76077727]
[1754745813367,0.03,181.28,181.27,15.98740991]
[1754745814378,0.03,181.28,181.27,15.27740991]
[1754745814748,0.03,181.28,181.27,9.76077727]
[1754745814983,0.71,181.28,181.27,9.76077727]
[1754745815462,0.03,181.28,181.27,9.76077727]
[1754745815857,0.71,181.28,181.27,9.76077727]
[1754745816177,0.03,181.28,181.27,9.76077727]
[1754745817180,0.03,181.28,181.27,15.27740991]
[1754745817479,0.03,181.28,181.27,31.21568783]
[1754745818276,0.03,181.29,181.28,15.10621557]
[1754745818453,0.03,181.29,181.28,24.98905519]
[1754745818660,0.03,181.29,181.28,25.69905519]
[1754745818869,0.03,181.29,181.28,65.33905519]
[1754745819054,0.03,181.3,181.28,65.33905519]
[1754745819378,0.03,181.3,181.29,57.21507923]
[1754745821059,21.08378855,181.34,181.32,26.0]
[1754745821261,21.08378855,181.34,181.32,41.39795102]
[1754745821461,21.08378855,181.34,181.32,42.10795102]
[1754745821982,21.08378855,181.34,181.32,57.21416659]
[1754745822894,21.08378855,181.34,181.32,96.12416659]
[1754745823963,21.08378855,181.34,181.32,75.50283962]
[1754745824762,21.08378855,181.34,181.32,35.88283962]
[1754745825282,0.71,181.33,181.32,35.88283962]
[1754745825585,0.71,181.33,181.32,9.88283962]
[1754745826082,6.22480725,181.33,181.32,4.12522559]
[1754745828792,11.98242128,181.33,181.28,5.75761403]
[1754745829087,0.68,181.32,181.29,9.87074168]
[1754745829391,0.68,181.32,181.3,4.11312765]
[1754745829684,0.68,181.32,181.31,4.11312765]
[1754745830069,22.7582584,181.32,181.27,5.81761403]
[1754745830384,0.68,181.31,181.28,4.11382734]
[1754745830577,0.68,181.31,181.29,4.11382734]
[1754745830773,0.68,181.31,181.3,4.11382734]
[1754745832063,6.19541558,181.31,181.3,4.11382734]
[1754745834372,45.79541558,181.31,181.3,4.11382734]
[1754745835284,51.61302958,181.31,181.3,4.11382734]
[1754745835590,45.79541558,181.31,181.3,4.11382734]
[1754745835898,51.55302961,181.31,181.27,0.06]
[1754745836062,6.43761403,181.3,181.28,4.11584116]
[1754745836386,5.75761403,181.3,181.29,4.11584116]
[1754745836785,0.68,181.3,181.29,4.11584116]
[1754745837788,61.68039158,181.31,181.29,4.11584116]
[1754745838094,50.87302961,181.31,181.3,4.11584116]
[1754745838398,56.63064361,181.31,181.3,4.11584116]
[1754745838572,57.31064361,181.31,181.3,4.11584116]
[1754745838904,51.55302958,181.31,181.3,4.11584116]
[1754745839200,57.31064361,181.31,181.3,4.11584116]
[1754745839796,50.87302958,181.31,181.3,4.11584116]
[1754745840125,39.6,181.31,181.3,4.11584116]
[1754745841494,45.11541558,181.31,181.3,4.11584116]
[1754745841673,45.79541558,181.31,181.3,4.11584116]
[1754745841867,40.28,181.31,181.3,4.11584116]
[1754745842076,39.6,181.31,181.3,4.11584116]
[1754745842774,39.6,181.31,181.3,4.80584116]
[1754745843085,39.6,181.31,181.3,9.87345519]
[1754745843699,39.6,181.31,181.3,10.56345519]
[1754745844107,0.03,181.33,181.3,10.56345519]
[1754745844108,39.63,181.33,181.3,10.56345519]
[1754745844407,40.31,181.33,181.31,9.87345519]
[1754745844577,40.31,181.33,181.32,4.11584116]
[1754745844774,39.63,181.33,181.32,4.11584116]
[1754745845200,39.63,181.33,181.32,9.87345519]
[1754745845482,0.03,181.33,181.32,10.56345519]
[1754745846822,0.03,181.33,181.32,9.87345519]
[1754745847010,0.03,181.33,181.32,10.56345519]
[1754745847984,0.03,181.33,181.32,9.87345519]
[1754745848380,0.03,181.33,181.32,10.56345519]
[1754745848786,0.03,181.33,181.32,16.07856659]
[1754745849321,0.03,181.33,181.32,10.56345519]
[1754745850282,0.03,181.33,181.32,4.80584116]
[1754745850480,40.29,181.33,181.32,4.11584116]
[1754745851592,46.04761403,181.33,181.32,4.11584116]
[1754745852013,51.56242128,181.33,181.32,4.11584116]
[1754745852325,45.80480725,181.33,181.32,4.11584116]
[1754745853404,51.56242128,181.33,181.32,4.11584116]
[1754745853600,51.56242128,181.33,181.28,0.06]
[1754745853783,6.43761403,181.32,181.29,4.1180092]
[1754745853988,40.26,181.31,181.3,4.1180092]
[1754745854404,45.77541558,181.31,181.3,4.1180092]
[1754745855006,45.09541558,181.31,181.3,4.1180092]
[1754745855198,45.77541558,181.31,181.3,4.1180092]
[1754745855598,45.09541558,181.31,181.3,4.1180092]
[1754745855799,45.77541558,181.31,181.3,4.1180092]
[1754745855993,51.53302961,181.31,181.3,4.1180092]
[1754745856310,51.53302961,181.31,181.3,4.11918512]
[1754745856987,66.63924518,181.31,181.28,0.06]
[1754745857299,5.75761403,181.29,181.28,0.06]
[1754745857502,45.33761403,181.29,181.28,0.06]
[1754745857704,46.01761403,181.29,181.28,0.06]
[1754745858316,51.53363807,181.29,181.28,0.06]
[1754745859204,5.51602404,181.29,181.28,0.06]
[1754745859415,45.77602404,181.29,181.28,4.17530818]
[1754745860313,45.77602404,181.29,181.28,0.06]
[1754745861008,45.77602404,181.29,181.28,4.17468565]
[1754745861211,45.09602404,181.29,181.28,4.17468565]
[1754745861406,5.51564286,181.31,181.28,10.62229968]
[1754745861601,39.58,181.3,181.29,9.87149377]
[1754745861796,39.58,181.3,181.29,4.11387974]
[1754745861998,39.58,181.3,181.29,9.87149377]
[1754745862296,39.58,181.3,181.29,4.11387974]
[1754745862496,39.58,181.3,181.29,9.87149377]
[1754745864124,39.58,181.3,181.29,10.56149377]
[1754745865298,39.58,181.3,181.29,4.80387974]
[1754745865632,39.58,181.3,181.29,9.87149377]
[1754745865922,40.26,181.3,181.29,4.11387974]
[1754745866306,45.0957198,181.3,181.29,4.11387974]
[1754745867117,45.7757198,181.3,181.29,4.11387974]
[1754745868104,45.0957198,181.3,181.29,9.87149377]
[1754745869122,0.68,181.32,181.29,9.87149377]
[1754745869303,0.68,181.32,181.31,5.75761403]
[1754745869304,5.51514772,181.32,181.31,5.75761403]
[1754745869503,5.51514772,181.32,181.31,9.87149377]
[1754745869504,39.58,181.32,181.31,9.87149377]
[1754745869806,39.58,181.32,181.31,10.58149377]
[1754745870013,39.58,181.32,181.31,4.82387974]
[1754745870323,39.59,181.33,181.31,10.58149377]
[1754745870518,39.59,181.33,181.32,4.11387974]
[1754745870698,39.59,181.33,181.32,9.87149377]
[1754745871519,39.59,181.33,181.32,10.58149377]
[1754745871824,0.03,181.33,181.32,10.58149377]
[1754745872208,0.03,181.33,181.32,16.09660517]
[1754745872927,0.03,181.33,181.32,21.8542192]
[1754745874102,0.03,181.33,181.32,10.58149377]
[1754745875909,0.03,181.33,181.32,9.87149377]
[1754745876733,0.03,181.33,181.32,4.11387974]
[1754745877037,0.03,181.33,181.32,9.87149377]
[1754745877238,39.59,181.33,181.32,9.87149377]
[1754745877406,0.03,181.33,181.32,9.87149377]
[1754745878016,0.75,181.33,181.32,9.87149377]
[1754745878340,0.03,181.33,181.32,9.87149377]
[1754745880807,0.03,181.33,181.32,10.58149377]
[1754745881136,0.03,181.33,181.32,9.87149377]
[1754745881639,0.03,181.33,181.32,10.58149377]
[1754745882219,0.03,181.33,181.32,4.11387974]
[1754745882418,0.03,181.33,181.32,9.87149377]
[1754745883813,0.75,181.33,181.32,4.11387974]
[1754745884953,6.50761403,181.33,181.32,4.11387974]
[1754745885146,6.50761403,181.33,181.31,0.06]
[1754745885435,39.54,181.32,181.31,0.06]
[1754745885642,0.03,181.33,181.31,4.173386]
[1754745885946,39.54,181.32,181.31,0.06]
[1754745886118,39.54,181.32,181.31,4.17293743]
[1754745887252,39.54,181.32,181.31,9.93055146]
[1754745887434,39.54,181.32,181.31,4.17293743]
[1754745887753,39.54,181.32,181.31,9.93055146]
[1754745888840,39.54,181.32,181.31,4.17293743]
[1754745889052,39.54,181.32,181.31,9.93055146]
[1754745890859,39.54,181.32,181.31,4.17293743]
[1754745891062,39.54,181.32,181.31,9.93055146]
[1754745891765,39.54,181.32,181.31,9.93061981]
[1754745892128,39.54,181.32,181.31,9.93041243]
[1754745892430,40.26,181.32,181.31,9.93041243]
[1754745892943,40.26,181.32,181.31,4.1727984]
[1754745893333,39.54,181.32,181.31,9.93041243]
[1754745893534,40.26,181.32,181.31,4.1727984]
[1754745893835,40.26,181.32,181.31,9.93041243]
[1754745894041,39.54,181.32,181.31,9.93041243]
[1754745894750,39.54,181.32,181.31,10.64041243]
[1754745894938,0.03,181.33,181.31,10.64041243]
[1754745895139,0.03,181.33,181.32,9.87041243]
[1754745895550,0.03,181.33,181.32,10.58041243]
[1754745895732,0.1,181.34,181.32,10.58041243]
[1754745895936,0.1,181.34,181.33,36.58041243]
[1754745896236,0.1,181.34,181.33,42.09521968]
[1754745897258,0.1,181.34,181.33,62.95904928]
[1754745897863,0.1,181.34,181.33,42.09521968]
[1754745900541,0.1,181.34,181.33,42.09090915]
[1754745901049,0.1,181.34,181.33,47.84852318]